fUSD/lending_fUSD_20240606
["ID","MTS","AMOUNT","RATE_DAILY","PERIOD"]
[328678889,1717693847748,-500.0,0.00029863,4]
[328678890,1717693847757,-500.0,0.00029863,4]
[328678891,1717693847766,-500.0,0.00029863,4]
[328678892,1717693847775,-500.0,0.00029863,4]
[328678893,1717693847785,-500.0,0.00029863,4]
[328678894,1717693847798,-500.0,0.00029863,4]
[328678895,1717693847808,-500.0,0.00029863,4]
[328678896,1717693847818,-500.0,0.00029863,4]
[328678897,1717693847828,-500.0,0.00029863,4]
[328678898,1717693847839,-278.3,0.00029863,4]
[328678899,1717693847849,-500.0,0.00029863,4]
[328678900,1717693847858,-500.0,0.00029863,4]
[328678901,1717693847868,-500.0,0.00029863,4]
[328678902,1717693848043,-500.0,0.00029863,4]
[328678903,1717693848053,-500.0,0.00029863,4]
[328678904,1717693848064,-500.0,0.00029863,4]
[328678905,1717693848074,-416.95,0.00029863,4]
[328678906,1717693848084,-500.0,0.00029863,4]
[328678907,1717693848093,-500.0,0.00029863,4]
[328678908,1717693848103,-500.0,0.00029863,4]
[328678909,1717693848113,-500.0,0.00029863,4]
[328678910,1717693848122,-500.0,0.00029863,4]
[328678911,1717693848132,-229.55,0.00029863,4]
[328678912,1717693848142,-500.0,0.00029863,4]
[328678913,1717693848151,-500.0,0.00029863,4]
[328678914,1717693848160,-500.0,0.00029863,4]
[328678915,1717693848170,-500.0,0.00029863,4]
[328678916,1717693848180,-172.84,0.00029863,4]
[328678917,1717693848189,-500.0,0.00029863,4]
[328678918,1717693848199,-500.0,0.00029863,4]
[328678919,1717693848209,-206.05,0.00029863,4]
[328678920,1717693848219,-500.0,0.00029863,4]
[328678921,1717693848229,-443.09,0.00029863,4]
[328678922,1717693848238,-500.0,0.00029863,4]
[328678923,1717693848248,-500.0,0.00029863,4]
[328678924,1717693848257,-174.4,0.00029863,4]
[328678925,1717693848266,-500.0,0.00029863,4]
[328678926,1717693848277,-500.0,0.00029863,4]
[328678927,1717693848286,-500.0,0.00029863,4]
[328678928,1717693848297,-392.50912424,0.00029863,4]
[328678929,1717693848306,-500.0,0.00029863,4]
[328678930,1717693848316,-500.0,0.00029863,4]
[328678931,1717693848325,-500.0,0.00029863,4]
[328678932,1717693848335,-500.0,0.00029863,4]
[328678933,1717693848344,-500.0,0.00029863,4]
[328678934,1717693848354,-500.0,0.00029863,4]
[328678935,1717693848363,-224.62,0.00029863,4]
[328678936,1717693848372,-500.0,0.00029863,4]
[328678937,1717693848382,-500.0,0.00029863,4]
[328678938,1717693848391,-500.0,0.00029863,4]
[328678939,1717693848401,-500.0,0.00029863,4]
[328678940,1717693848410,-463.21,0.00029863,4]
[328678941,1717693848420,-169.15,0.00029863,4]
[328678942,1717693848430,-500.0,0.00029863,4]
[328678943,1717693848439,-500.0,0.00029863,4]
[328678944,1717693848448,-500.0,0.00029863,4]
[328678945,1717693848457,-500.0,0.00029863,4]
[328678946,1717693848467,-500.0,0.00029863,4]
[328678947,1717693848477,-500.0,0.00029863,4]
[328678948,1717693848486,-240.29,0.00029863,4]
[328678949,1717693848496,-500.0,0.00029863,4]
[328678950,1717693848505,-500.0,0.00029863,4]
[328678951,1717693848514,-500.0,0.00029863,4]
[328678952,1717693848524,-223.5549,0.00029863,4]
[328678953,1717693848533,-500.0,0.00029863,4]
[328678954,1717693848542,-646.13,0.00029863,4]
[328678955,1717693848551,-500.0,0.00029863,4]
[328678956,1717693848560,-500.0,0.00029863,4]
[328678957,1717693848570,-378.93,0.00029863,4]
[328678958,1717693848579,-500.0,0.00029863,4]
[328678959,1717693848588,-500.0,0.00029863,4]
[328678960,1717693848597,-500.0,0.00029863,4]
[328678961,1717693848607,-500.0,0.00029863,4]
[328678962,1717693848617,-500.0,0.00029863,4]
[328678963,1717693848626,-500.0,0.00029863,4]
[328678964,1717693848635,-298.64,0.00029863,4]
[328678965,1717693848645,-500.0,0.00029863,4]
[328678966,1717693848654,-500.0,0.00029863,4]
[328678967,1717693848663,-500.0,0.00029863,4]
[328678968,1717693848673,-369.53,0.00029863,4]
[328678969,1717693848682,-500.0,0.00029863,4]
[328678970,1717693848691,-576.02,0.00029863,4]
[328678971,1717693848700,-500.0,0.00029863,4]
[328678972,1717693848710,-500.0,0.00029863,4]
[328678973,1717693848719,-500.0,0.00029863,4]
[328678974,1717693848729,-500.0,0.00029863,4]
[328678975,1717693848738,-500.0,0.00029863,4]
[328678976,1717693848748,-500.0,0.00029863,4]
[328678977,1717693848758,-500.0,0.00029863,4]
[328678978,1717693848767,-500.0,0.00029863,4]
[328678979,1717693848776,-458.91,0.00029863,4]
[328678980,1717693848785,-500.0,0.00029863,4]
[328678981,1717693848795,-500.0,0.00029863,4]
[328678982,1717693848809,-500.0,0.00029863,4]
[328678983,1717693848818,-603.64,0.00029863,4]
[328678984,1717693848827,-500.0,0.00029863,4]
[328678985,1717693848837,-500.0,0.00029863,4]
[328678986,1717693848848,-500.0,0.00029863,4]
[328678987,1717693848857,-500.0,0.00029863,4]
[328678988,1717693848868,-500.0,0.00029863,4]
[328678989,1717693848879,-500.0,0.00029863,4]
[328678990,1717693848889,-500.0,0.00029863,4]
[328678991,1717693848899,-500.0,0.00029863,4]
[328678992,1717693848908,-601.45,0.00029863,4]
[328678993,1717693848918,-500.0,0.00029863,4]
[328678994,1717693848927,-500.0,0.00029863,4]
[328678995,1717693848936,-686.63,0.00029863,4]
[328678996,1717693848946,-686.63,0.00029863,4]
[328678997,1717693848955,-686.63,0.00029863,4]
[328678998,1717693848964,-686.63,0.00029863,4]
[328678999,1717693848974,-686.63,0.00029863,4]
[328679000,1717693848984,-500.0,0.00029863,4]
[328679001,1717693848993,-500.0,0.00029863,4]
[328679002,1717693849002,-500.0,0.00029863,4]
[328679003,1717693849011,-500.0,0.00029863,4]
[328679004,1717693849020,-500.0,0.00029863,4]
[328679005,1717693849029,-537.05,0.00029863,4]
[328679006,1717693849039,-500.0,0.00029863,4]
[328679007,1717693849048,-500.0,0.00029863,4]
[328679008,1717693849057,-500.0,0.00029863,4]
[328679009,1717693849066,-500.0,0.00029863,4]
[328679010,1717693849075,-500.0,0.00029863,4]
[328679011,1717693849084,-608.51,0.00029863,4]
[328679012,1717693849093,-500.0,0.00029863,4]
[328679013,1717693849102,-500.0,0.00029863,4]
[328679014,1717693849111,-500.0,0.00029863,4]
[328679015,1717693849120,-500.0,0.00029863,4]
[328679016,1717693849130,-500.0,0.00029863,4]
[328679017,1717693849139,-231.79,0.00029863,4]
[328679018,1717693849150,-500.0,0.00029863,4]
[328679019,1717693849159,-500.0,0.00029863,4]
[328679020,1717693849168,-500.0,0.00029863,4]
[328679021,1717693849178,-230.40833961,0.00029863,4]
[328679022,1717693849187,-500.0,0.00029863,4]
[328679023,1717693849197,-500.0,0.00029863,4]
[328679024,1717693849206,-500.0,0.00029863,4]
[328679025,1717693849215,-500.0,0.00029863,4]
[328679026,1717693849224,-500.0,0.00029863,4]
[328679027,1717693849234,-424.89761644,0.00029863,4]
[328679028,1717693849243,-500.0,0.00029863,4]
[328679029,1717693849252,-590.54,0.00029863,4]
[328679030,1717693849261,-500.0,0.00029863,4]
[328679031,1717693849270,-512.52116914,0.00029863,4]
[328679032,1717693849280,-500.0,0.00029863,4]
[328679033,1717693849290,-500.0,0.00029863,4]
[328679034,1717693849299,-500.0,0.00029863,4]
[328679035,1717693849308,-563.52,0.00029863,4]
[328679036,1717693849318,-500.0,0.00029863,4]
[328679037,1717693849327,-500.0,0.00029863,4]
[328679038,1717693849336,-272.0,0.00029863,4]
[328679039,1717693849345,-500.0,0.00029863,4]
[328679040,1717693849354,-458.42,0.00029863,4]
[328679041,1717693849363,-500.0,0.00029863,4]
[328679042,1717693849372,-500.0,0.00029863,4]
[328679043,1717693849382,-500.0,0.00029863,4]
[328679044,1717693849394,-500.0,0.00029863,4]
[328679045,1717693849403,-500.0,0.00029863,4]
[328679046,1717693849412,-500.0,0.00029863,4]
[328679047,1717693849421,-529.94456226,0.00029863,4]
[328679048,1717693849430,-500.0,0.00029863,4]
[328679049,1717693849439,-500.0,0.00029863,4]
[328679050,1717693849448,-500.0,0.00029863,4]
[328679051,1717693849458,-500.0,0.00029863,4]
[328679052,1717693849467,-343.0,0.00029867,5]
[328679053,1717693849476,-804.99703929,0.00029871,2]
[328679054,1717693849609,-500.0,0.00029863,4]
[328679055,1717693849618,-422.87807846,0.00029863,4]
[328679056,1717693849627,-4875.00405831,0.00029871,2]
[328679057,1717693849638,-7528.3816616,0.00029871,2]
[328679058,1717693849658,-4969.93,0.00029871,2]
[328679059,1717693849669,-2549.6686408,0.00029871,2]
[328679060,1717693849678,-4956.28,0.00029873,2]
[328679061,1717693849687,-682.94654357,0.00029875,2]
[328679062,1717693849696,-154.00356296,0.00029876,2]
[328679063,1717693849705,-154.2025836,0.00029882,2]
[328679064,1717693849714,-682.94654357,0.00029888,2]
[328679065,1717693849723,-83.58012445,0.00029897,4]
[328679066,1717693849743,-222.5157326,0.00029398,2]
[328679067,1717693849754,-416.41987555,0.00029897,4]
[328679068,1717693849765,-12264.9207481,0.00029898,2]
[328679069,1717693849779,-33726.00650358,0.00029898,2]
[328679070,1717693849793,-15445.52514832,0.00029898,2]
[328679071,1717693849808,-500.0,0.00029898,2]
[328679072,1717693849823,-2780.0,0.000299,2]
[328679073,1717693849832,-682.94654357,0.000299,2]
[328679074,1717693849842,-194.34522032,0.000299,2]
[328679075,1717693849854,-322.15475362,0.000299,2]
[328679076,1717693849865,-1759.82224098,0.000299,2]
[328679077,1717693849879,-446.77321057,0.000299,2]
[328679078,1717693849890,-160.38064444,0.00029916,2]
[328679079,1717693849901,-153.82412396,0.00029952,2]
[328679080,1717693849912,-321.46479676,0.00029955,2]
[328679081,1717693849922,-155.20555368,0.00029956,2]
[328679082,1717693849933,-154.00356296,0.00029961,2]
[328679083,1717693849945,-153.24544879,0.00029965,2]
[328679084,1717693849955,-226.0,0.0002997,15]
[328679085,1717693849968,-226.0,0.0002997,15]
[328679086,1717693849979,-635.0,0.0002997,15]
[328679087,1717693849990,-635.0,0.0002997,15]
[328679088,1717693850003,-4610.3336856,0.00029971,2]
[328679089,1717693850014,-153.52790425,0.00029976,2]
[328679090,1717693850026,-822.5677978,0.00029979,2]
[328679091,1717693850037,-822.5677978,0.00029979,2]
[328679092,1717693850048,-822.5677978,0.00029979,2]
[328679093,1717693850060,-822.5677978,0.00029979,2]
[328679094,1717693850071,-822.5677978,0.00029979,2]
[328679095,1717693850083,-383.6368054,0.00029979,2]
[328679096,1717693850093,-383.6368054,0.00029979,2]
[328679097,1717693850104,-383.6368054,0.00029979,2]
[328679098,1717693850114,-383.6368054,0.00029979,2]
[328679099,1717693850124,-383.6368054,0.00029979,2]
[328679100,1717693850135,-1318.2236799,0.00029979,2]
[328679101,1717693850146,-1318.2236799,0.00029979,2]
[328679102,1717693850158,-1318.2236799,0.00029979,2]
[328679103,1717693850169,-1318.2236799,0.00029979,2]
[328679104,1717693850179,-270.51007697,0.00029979,2]
[328679105,1717693850193,-1047.71360293,0.00029979,2]
[328679106,1717693850204,-226.0,0.0002998,15]
[328679107,1717693850215,-226.0,0.0002998,15]
[328679108,1717693850225,-226.0,0.0002998,15]
[328679109,1717693850237,-231.0,0.0002998,15]
[328679110,1717693850247,-635.0,0.0002998,15]
[328679111,1717693850257,-635.0,0.0002998,15]
[328679112,1717693850269,-635.0,0.0002998,15]
[328679113,1717693850280,-639.0,0.0002998,15]
[328679114,1717693850290,-578.11905082,0.00029983,2]
[328679115,1717693850301,-822.5677978,0.00029987,2]
[328679116,1717693850312,-202.0,0.0002999,2]
[328679117,1717693850324,-226.0,0.0002999,15]
[328679118,1717693850335,-226.0,0.0002999,15]
[328679119,1717693850347,-226.0,0.0002999,15]
[328679120,1717693850358,-226.0,0.0002999,15]
[328679121,1717693850369,-200.0,0.0002999,2]
[328679122,1717693850380,-635.0,0.0002999,15]
[328679123,1717693850392,-635.0,0.0002999,15]
[328679124,1717693850405,-635.0,0.0002999,15]
[328679125,1717693850416,-635.0,0.0002999,15]
[328679126,1717693850427,-200.0,0.0002999,2]
[328679127,1717693850439,-200.0,0.0002999,2]
[328679128,1717693850451,-189.92070065,0.0002999,2]
[328679129,1717693850461,-200.0,0.0002999,2]
[328679130,1717693850471,-200.0,0.0002999,2]
[328679131,1717693850481,-418.18251552,0.00029992,2]
[328679132,1717693850491,-500.0,0.00029994,4]
[328679133,1717693850502,-500.0,0.00029994,4]
[328679134,1717693850512,-500.0,0.00029994,4]
[328679135,1717693850522,-500.0,0.00029994,4]
[328679136,1717693850533,-153.52790425,0.00029994,2]
[328679137,1717693850544,-487.78,0.00029994,4]
[328679138,1717693850555,-155.0,0.00029996,2]
[328679139,1717693850566,-1260.44934067,0.00029996,2]
[328679140,1717693850577,-157.9575,0.00029996,2]
[328679141,1717693850590,-714.70481135,0.00029996,2]
[328679142,1717693850600,-10968.56338147,0.00029996,2]
[328679143,1717693850610,-176.371291,0.00029996,2]
[328679144,1717693850619,-541.17654791,0.00029996,7]
[328679145,1717693850630,-1789.34966613,0.00029996,10]
[328679146,1717693850641,-500.0,0.00029996,4]
[328679147,1717693850653,-686.63,0.00029996,4]
[328679148,1717693850663,-500.0,0.00029996,4]
[328679149,1717693850673,-3384.04340712,0.00029997,2]
[328679150,1717693850684,-537.23750335,0.00029997,2]
[328679151,1717693850695,-155.0,0.00029997,2]
[328679152,1717693850706,-1182.76680112,0.00029997,2]
[328679153,1717693850717,-1139.55065933,0.00029997,2]
[328679154,1717693850727,-856.97889331,0.00029997,2]
[328679155,1717693850737,-155.29079437,0.00029997,2]
[328679156,1717693850746,-33594.08279296,0.00029997,2]
[328679157,1717693850759,-170218.13169002,0.00029997,2]
[328679158,1717693850774,-8941.53994902,0.00029997,2]
[328679159,1717693850784,-202.23032698,0.00029998,2]
[328679160,1717693850795,-1979.48660224,0.00029998,2]
[328679161,1717693850811,-545.44684599,0.00029998,2]
[328679162,1717693850821,-1000.0,0.00029998,2]
[328679163,1717693850831,-412.72230835,0.00029998,2]
[328679164,1717693850843,-7537.31948195,0.00029998,2]
[328679165,1717693850853,-1058.28035303,0.00029998,2]
[328679166,1717693850866,-186.62464696,0.00029998,2]
[328679167,1717693850878,-155.0,0.00029998,2]
[328679168,1717693850890,-179.94391801,0.00029998,2]
[328679169,1717693850902,-1391.1277063,0.00029998,2]
[328679170,1717693850912,-2630.81601353,0.00029998,2]
[328679171,1717693850925,-16266.34667293,0.00029998,2]
[328679172,1717693850938,-866.7350382,0.00029998,2]
[328679173,1717693850948,-257.69510538,0.00029998,2]
[328679174,1717693850960,-500.0,0.00029998,2]
[328679175,1717693850971,-697.30387364,0.00029998,14]
[328679176,1717693850982,-155.0,0.00029998,2]
[328679177,1717693850993,-422.02707389,0.00029998,2]
[328679178,1717693851004,-180.0617535,0.00029998,2]
[328679179,1717693851014,-155.13656754,0.00029998,2]
[328679180,1717693851024,-3545.78606927,0.00029998,2]
[328679181,1717693851035,-602.88619666,0.00029998,2]
[328679182,1717693851045,-500.0,0.00029998,4]
[328679183,1717693851056,-686.63,0.00029998,4]
[328679184,1717693851067,-463.23784485,0.00029998,2]
[328679185,1717693851078,-562.66447747,0.00029999,2]
[328679186,1717693851091,-922.11501828,0.00029999,2]
[328679187,1717693851102,-949.10416499,0.00029999,2]
[328679188,1717693851112,-150.01,0.00029999,2]
[328679189,1717693851122,-252.60969661,0.00029999,4]
[328679190,1717693851135,-247.39030339,0.00029999,4]
[328679191,1717693851147,-500.0,0.00029999,4]
[328679192,1717693851158,-500.0,0.00029999,4]
[328679193,1717693851169,-500.0,0.00029999,4]
[328679194,1717693851180,-500.0,0.00029999,4]
[328679195,1717693851191,-177.9085829,0.00029999,4]
[328679196,1717693851202,-552.02547909,0.00029999,4]
[328679197,1717693851213,-500.0,0.00029999,4]
[328679198,1717693851225,-500.0,0.00029999,4]
[328679199,1717693851235,-500.0,0.00029999,4]
[328679200,1717693851245,-500.0,0.00029999,4]
[328679201,1717693851256,-500.0,0.00029999,4]
[328679202,1717693851266,-500.0,0.00029999,4]
[328679203,1717693851277,-500.0,0.00029999,4]
[328679204,1717693851288,-500.0,0.00029999,4]
[328679205,1717693851298,-500.0,0.00029999,4]
[328679206,1717693851309,-500.0,0.00029999,4]
[328679207,1717693851320,-500.0,0.00029999,4]
[328679208,1717693851330,-500.0,0.00029999,4]
[328679209,1717693851340,-406.80930742,0.00029999,4]
[328679210,1717693851350,-500.0,0.00029999,4]
[328679211,1717693851360,-500.0,0.00029999,4]
[328679212,1717693851370,-500.0,0.00029999,4]
[328679213,1717693851381,-182.97,0.00029999,4]
[328679214,1717693851391,-500.0,0.00029999,4]
[328679215,1717693851403,-609.16,0.00029999,4]
[328679216,1717693851413,-686.63,0.00029999,4]
[328679217,1717693851423,-686.63,0.00029999,4]
[328679218,1717693851434,-686.63,0.00029999,4]
[328679219,1717693851444,-686.63,0.00029999,4]
[328679220,1717693851454,-686.63,0.00029999,4]
[328679221,1717693851464,-686.63,0.00029999,4]
[328679222,1717693851475,-686.63,0.00029999,4]
[328679223,1717693851485,-686.63,0.00029999,4]
[328679224,1717693851495,-686.63,0.00029999,4]
[328679225,1717693851505,-686.63,0.00029999,4]
[328679226,1717693851515,-686.63,0.00029999,4]
[328679227,1717693851526,-686.63,0.00029999,4]
[328679228,1717693851536,-686.63,0.00029999,4]
[328679229,1717693851546,-686.63,0.00029999,4]
[328679230,1717693851557,-686.63,0.00029999,4]
[328679231,1717693851568,-686.63,0.00029999,4]
[328679232,1717693851579,-686.86181173,0.00029999,4]
[328679233,1717693851592,-601.0,0.00029999,4]
[328679234,1717693851602,-11569.92604765,0.0003,13]
[328679235,1717693851616,-2863.85750453,0.0003,13]
[328679236,1717693851628,-5735.40070747,0.0003,13]
[328679237,1717693851639,-22567.74153798,0.0003,2]
[328679238,1717693851653,-12786.51262154,0.0003,2]
[328679239,1717693851666,-19110.0,0.0003,2]
[328679240,1717693851679,-2343.36758848,0.0003,2]
[328679241,1717693851737,-242.26733657,0.00013787,2]
[328679242,1717693852414,-2523.93814199,0.00013511,2]
[328679243,1717693883653,-453.11382736,0.00013241,2]
[328679244,1717693884245,-774.49685412,0.00013241,2]
[328679245,1717693884564,-5486.56044817,0.00013511,2]
[328679246,1717693885177,-1346.88617264,0.00013511,2]
[328679247,1717693999086,556.04382022,0.00010133,2]
[328679248,1717694031865,24651.71873134,0.00010133,2]
[328679249,1717694049893,24651.71873134,0.00010133,2]
[328679250,1717694069887,24651.71873134,0.00010133,2]
[328679251,1717694087873,23086.37382498,0.00010133,2]
[328679252,1717694087909,1565.34490636,0.00010133,2]
[328679253,1717694105868,150.0,0.00010133,2]
[328679254,1717694105894,258.75422698,0.00010133,2]
[328679255,1717694105919,24242.96450436,0.00010133,2]
[328679256,1717694125873,24651.71873134,0.00010133,2]
[328679257,1717694143884,24651.71873134,0.00010133,2]
[328679258,1717694159994,9539.41458206,0.00010133,2]
[328679259,1717694165426,173.6,0.00027696,120]
[328679262,1717694539743,28600.0,0.0003,40]
[328680538,1717694967619,2500.0,0.0003,40]
[328680547,1717695032373,-223.45418017,0.00013305,2]
[328680548,1717695032383,-155.0,0.00013404,2]
[328680549,1717695032393,-453.11382736,0.00013405,2]
[328680550,1717695032404,-156.91231771,0.0001341,2]
[328680551,1717695032414,-798.2724394,0.0001351,2]
[328680552,1717695032481,-2300.82485632,0.0001351,2]
[328680553,1717695032491,-150.0,0.0001351,2]
[328680554,1717695032501,-150.0,0.0001351,2]
[328680555,1717695032511,-933.38184444,0.00013511,2]
[328680556,1717695032524,-850.69785005,0.00013511,2]
[328680557,1717695032536,-10018.31942303,0.00013511,2]
[328680558,1717695032548,-563.49596263,0.00013511,2]
[328680559,1717695032586,-845.39999995,0.00013511,2]
[328680560,1717695032597,-935.11650011,0.00013511,2]
[328680561,1717695032609,-4098.10718112,0.00013511,2]
[328680562,1717695032696,-726.25927746,0.00013511,2]
[328680563,1717695032708,-1473.14418804,0.00013511,2]
[328680564,1717695032718,-4116.86116669,0.00013511,2]
[328680565,1717695032727,-179.59,0.00016712,2]
[328680566,1717695032738,-9718.06383566,0.00017259,2]
[328680567,1717695032747,-687.73,0.00017534,2]
[328680568,1717695032758,-1920.56,0.00017534,2]
[328680569,1717695032767,-4470.76491613,0.00017808,2]
[328680570,1717695032782,-266.76255654,0.00017808,2]
[328680571,1717695032794,-3966.33252733,0.00017808,2]
[328680572,1717695032804,-163.26,0.00019403,2]
[328680573,1717695032813,-430.33,0.00019452,2]
[328680574,1717695032822,-2000.0,0.0002,2]
[328680575,1717695032832,-1000.0,0.000219,2]
[328680576,1717695032841,-339.51,0.00023632,2]
[328680577,1717695032852,-627.99,0.00023805,2]
[328680578,1717695032861,-848.23,0.00024073,2]
[328680579,1717695032871,-250.0,0.00024073,2]
[328680580,1717695032881,-250.0,0.00024122,2]
[328680582,1717695032890,-2000.0,0.00024254,3]
[328680584,1717695032899,-164.8,0.00024384,2]
[328680586,1717695032909,-504.52,0.00024384,2]
[328680588,1717695032918,-499.99,0.00024384,2]
[328680590,1717695032928,-508.34,0.00024422,2]
[328680592,1717695032939,-500.0,0.000247,2]
[328680594,1717695032948,-1000.0,0.00024999,2]
[328680596,1717695032957,-1000.0,0.00024999,2]
[328680598,1717695032966,-1250.0,0.00025,2]
[328680599,1717695032976,-706.05483356,0.00025305,2]
[328680602,1717695032986,-153.3,0.00025306,2]
[328680603,1717695032996,-171.833,0.00025306,2]
[328680606,1717695033005,-1503.65561983,0.00025315,2]
[328680608,1717695033015,-289.59,0.00025325,2]
[328680610,1717695033025,-1000.0,0.00025325,2]
[328680612,1717695033035,-351.88844729,0.00025352,2]
[328680614,1717695033044,-3338.5617,0.00025357,2]
[328680616,1717695033053,-487.26,0.00025358,2]
[328680618,1717695033063,-9543.36912199,0.00025458,7]
[328680620,1717695033074,-702.2735,0.00025458,7]
[328680716,1717695038770,-223.45418015,0.00013308,2]
[328680717,1717695038780,-223.45418015,0.0001331,2]
[328680718,1717695038791,-674.10473515,0.00025458,7]
[328680722,1717695038900,-21400.80090996,0.00025458,7]
[328680724,1717695038911,-191.92857825,0.00025458,7]
[328680726,1717695038921,-1667.53,0.00025486,2]
[328680728,1717695038931,-2110.0,0.000255,15]
[328680730,1717695038940,-155.96164781,0.00025508,2]
[328680732,1717695038954,-119.75835219,0.00025508,2]
[328680734,1717695038964,-1608.28,0.00025508,2]
[328680736,1717695038974,-250.0,0.00025526,2]
[328680737,1717695038984,-1405.10521065,0.00025526,2]
[328680921,1717695042357,-491.86478935,0.00025526,2]
[328680922,1717695042367,-1336.19,0.00025543,2]
[328680923,1717695042377,-881.25,0.00025544,2]
[328680924,1717695042387,-150.0,0.00025554,2]
[328680925,1717695042398,-200.0,0.00025659,2]
[328680926,1717695042408,-176.95,0.00025873,2]
[328680927,1717695042418,-339.51,0.00025895,2]
[328680928,1717695042428,-1271.76,0.0002592,2]
[328680929,1717695042438,-2110.0,0.00026,15]
[328680930,1717695042449,-319.49,0.0002603,2]
[328680931,1717695042459,-200.28869414,0.00026179,2]
[328680932,1717695042471,-151.41,0.0002618,2]
[328680933,1717695042481,-4092.28651651,0.00026189,2]
[328680934,1717695042493,-1030.8821226,0.00026189,2]
[328680935,1717695042505,-14289.90057792,0.00026189,2]
[328680936,1717695042517,-1053.98522685,0.00026189,2]
[328680947,1717695044258,-198.37,0.0002552,2]
[328680948,1717695044269,-3073.37063225,0.00026189,2]
[328680949,1717695044281,-4832.84908793,0.00026189,2]
[328680950,1717695044293,-22519.18865721,0.00026189,2]
[328680951,1717695044305,-2467.60621078,0.00026189,2]
[328680952,1717695044404,-15446.79312572,0.00026189,2]
[328680953,1717695044417,-3388.18225346,0.00026189,2]
[328680954,1717695044952,-37582.15951789,0.00026189,2]
[328680955,1717695044964,-308233.94240756,0.00026189,2]
[328680956,1717695044975,-1974.58157147,0.00026189,2]
[328680957,1717695044987,-1259.3182766,0.00026189,2]
[328680960,1717695046557,-280.1,0.0002173,2]
[328680961,1717695046567,-269597.81804169,0.00026189,2]
[328680962,1717695046577,-23900.0,0.0002619,2]
[328680963,1717695046586,-180.0,0.00026199,2]
[328680964,1717695046595,-500.0,0.00026244,2]
[328680965,1717695046605,-250.76,0.00026256,2]
[328680966,1717695046614,-494.12916413,0.00026294,2]
[328680967,1717695046624,-250.76,0.00026328,2]
[328680968,1717695046634,-250.76,0.000264,2]
[328680969,1717695046644,-264.88898994,0.00026444,2]
[328680970,1717695046654,-250.76,0.00026472,2]
[328680971,1717695046663,-2110.0,0.000265,15]
[328680972,1717695046672,-250.76,0.00026544,2]
[328680973,1717695046682,-250.76,0.00026616,2]
[328680974,1717695046691,-250.76,0.00026688,2]
[328680975,1717695046701,-494.12916404,0.00026695,2]
[328680976,1717695046710,-250.76,0.0002676,2]
[328680977,1717695046720,-201.33737076,0.00026804,2]
[328680978,1717695046731,-250.76,0.00026832,2]
[328680979,1717695046740,-551.18,0.00026893,3]
[328680980,1717695046749,-250.76,0.00026904,2]
[328680981,1717695046759,-250.76,0.00026976,2]
[328680982,1717695046768,-2110.0,0.00027,15]
[328680983,1717695046778,-1300.0,0.00027,2]
[328680984,1717695046787,-250.76,0.00027048,2]
[328680985,1717695046796,-494.12916404,0.00027095,2]
[328680986,1717695046805,-250.76,0.0002712,2]
[328680987,1717695046815,-250.76,0.00027192,2]
[328680988,1717695046826,-250.76,0.00027264,2]
[328680989,1717695046836,-264.88898994,0.00027308,2]
[328680990,1717695046846,-250.76,0.00027336,2]
[328680991,1717695046855,-500.0,0.0002734,2]
[328680992,1717695046864,-1208.12,0.00027397,10]
[328680993,1717695046874,-1006.76,0.00027397,10]